[Event "*** Titled Tuesday Blitz"]
[Site "Chess.com"]
[Date "2018.05.01"]
[Round "8"]
[White "JozefKneht"]
[Black "jk13"]
[Result "0-1"]
[WhiteElo "2382"]
[BlackElo "2531"]
[TimeControl "180+2"]
[EndTime "14:50:51 PDT"]
[Termination "jk13 won by resignation"]

1. e4 {[%clk 0:03:01.9]} 1... e5 {[%clk 0:03:01]} 2. Nf3 {[%clk 0:03:02.8]} 2...
Nc6 {[%clk 0:03:02.4]} 3. Bb5 {[%clk 0:03:03.6]} 3... Nf6 {[%clk 0:03:03.5]} 4.
O-O {[%clk 0:03:03.2]} 4... Nxe4 {[%clk 0:03:04.7]} 5. d4 {[%clk 0:03:04.4]}
5... Nd6 {[%clk 0:03:06.2]} 6. Bxc6 {[%clk 0:03:05.8]} 6... dxc6 {[%clk
0:03:08.1]} 7. dxe5 {[%clk 0:03:06.3]} 7... Nf5 {[%clk 0:03:09.8]} 8. Qxd8+
{[%clk 0:03:06.8]} 8... Kxd8 {[%clk 0:03:11.7]} 9. Nc3 {[%clk 0:03:07.6]} 9...
Bd7 {[%clk 0:03:11.5]} 10. h3 {[%clk 0:03:07.8]} 10... h6 {[%clk 0:03:11.4]} 11.
b3 {[%clk 0:03:08]} 11... a5 {[%clk 0:03:11.5]} 12. Bb2 {[%clk 0:03:07.6]} 12...
Kc8 {[%clk 0:03:10.6]} 13. Rad1 {[%clk 0:03:09]} 13... Ne7 {[%clk 0:03:03.8]}
14. Nd4 {[%clk 0:03:08.4]} 14... c5 {[%clk 0:02:57.6]} 15. Ndb5 {[%clk
0:02:57.9]} 15... a4 {[%clk 0:02:44.8]} 16. bxa4 {[%clk 0:02:57.6]} 16... Nc6
{[%clk 0:02:40.2]} 17. Nd5 {[%clk 0:02:43.5]} 17... Rxa4 {[%clk 0:02:32.8]} 18.
Nd6+ {[%clk 0:02:43.2]} 18... Bxd6 {[%clk 0:01:54.6]} 19. exd6 {[%clk
0:02:43.1]} 19... Rxa2 {[%clk 0:01:55.4]} 20. Bxg7 {[%clk 0:02:35.5]} 20... Rg8
{[%clk 0:01:56.2]} 21. Ra1 {[%clk 0:02:05.4]} 21... Ra6 {[%clk 0:00:56.9]} 22.
Bxh6 {[%clk 0:00:47.1]} 22... Bxh3 {[%clk 0:00:41.9]} 23. Nf4 {[%clk 0:00:47.8]}
23... Bf5 {[%clk 0:00:43.3]} 24. Rxa6 {[%clk 0:00:45.7]} 24... bxa6 {[%clk
0:00:44.6]} 25. dxc7 {[%clk 0:00:43.3]} 25... Bxc2 {[%clk 0:00:44.8]} 26. Rc1
{[%clk 0:00:43.5]} 26... Nb4 {[%clk 0:00:44.2]} 27. f3 {[%clk 0:00:41.9]} 27...
Kxc7 {[%clk 0:00:42.5]} 28. Nd5+ {[%clk 0:00:41.5]} 28... Nxd5 {[%clk
0:00:42.5]} 29. Rxc2 {[%clk 0:00:43]} 29... Kc6 {[%clk 0:00:43.1]} 30. Bd2
{[%clk 0:00:43]} 30... Kb5 {[%clk 0:00:42.2]} 31. Rb2+ {[%clk 0:00:40.9]} 31...
Nb4 {[%clk 0:00:43.3]} 32. Kf2 {[%clk 0:00:38.7]} 32... a5 {[%clk 0:00:43.9]}
33. g4 {[%clk 0:00:38.1]} 33... a4 {[%clk 0:00:45]} 34. Rb1 {[%clk 0:00:39.3]}
34... a3 {[%clk 0:00:44.9]} 35. g5 {[%clk 0:00:39.1]} 35... Ka4 {[%clk
0:00:42.4]} 36. f4 {[%clk 0:00:38.9]} 36... a2 {[%clk 0:00:41.7]} 37. Rc1 {[%clk
0:00:39]} 37... Nc2 {[%clk 0:00:31.8]} 38. Bc3 {[%clk 0:00:37.9]} 38... Kb3
{[%clk 0:00:33]} 39. Be5 {[%clk 0:00:36.7]} 39... Nd4 {[%clk 0:00:30.3]} 40. Ke3
{[%clk 0:00:34.4]} 40... Rd8 {[%clk 0:00:22.6]} 41. Ke4 {[%clk 0:00:24]} 41...
Kb2 {[%clk 0:00:12.2]} 42. Rxc5 {[%clk 0:00:24.7]} 42... a1=Q {[%clk 0:00:12.6]}
43. Bxd4+ {[%clk 0:00:25.9]} 43... Rxd4+ {[%clk 0:00:14.3]} 44. Kxd4 {[%clk
0:00:27.2]} 44... Kb3+ {[%clk 0:00:15.4]} 45. Kd5 {[%clk 0:00:27.5]} 45... Qe1
{[%clk 0:00:14.1]} 46. f5 {[%clk 0:00:25.2]} 46... Qe3 {[%clk 0:00:09.2]} 47. g6
{[%clk 0:00:24.3]} 47... fxg6 {[%clk 0:00:10.3]} 48. fxg6 {[%clk 0:00:25]} 48...
Qd3+ {[%clk 0:00:11.5]} 49. Kc6 {[%clk 0:00:23.9]} 49... Qxg6+ {[%clk
0:00:13.4]} 50. Kb7 {[%clk 0:00:24.8]} 50... Qd6 {[%clk 0:00:13.6]} 51. Rc6
{[%clk 0:00:25.8]} 51... Qd5 {[%clk 0:00:13.8]} 52. Kb6 {[%clk 0:00:26.7]} 52...
Kb4 {[%clk 0:00:15.3]} 53. Rc7 {[%clk 0:00:24.8]} 53... Qd6+ {[%clk 0:00:13.9]}
54. Rc6 {[%clk 0:00:24]} 54... Qb8+ {[%clk 0:00:14.9]} 55. Ka6 {[%clk
0:00:24.9]} 55... Qb5+ {[%clk 0:00:16]} 0-1

[Event "*** Titled Tuesday Blitz"]
[Site "Chess.com"]
[Date "2018.05.01"]
[Round "8"]
[White "FMJoseHerrera"]
[Black "Al_Shima"]
[Result "0-1"]
[WhiteElo "2414"]
[BlackElo "2416"]
[TimeControl "180+2"]
[EndTime "14:51:06 PDT"]
[Termination "Al_Shima won on time"]

1. Nf3 {[%clk 0:02:42]} 1... Nc6 {[%clk 0:02:58.9]} 2. g3 {[%clk 0:02:43.9]}
2... e5 {[%clk 0:02:59.6]} 3. Bg2 {[%clk 0:02:45.8]} 3... d5 {[%clk 0:02:58.6]}
4. O-O {[%clk 0:02:46.5]} 4... Be6 {[%clk 0:02:56.2]} 5. c4 {[%clk 0:02:44.5]}
5... dxc4 {[%clk 0:02:53.9]} 6. Qa4 {[%clk 0:02:42.8]} 6... Qd7 {[%clk
0:02:52.6]} 7. Na3 {[%clk 0:02:41.8]} 7... Bxa3 {[%clk 0:02:47.3]} 8. bxa3
{[%clk 0:02:33.2]} 8... Nge7 {[%clk 0:02:38.6]} 9. Bb2 {[%clk 0:02:31.2]} 9...
f6 {[%clk 0:02:38.8]} 10. Rfd1 {[%clk 0:02:25.2]} 10... O-O {[%clk 0:02:34]} 11.
d4 {[%clk 0:02:06.2]} 11... cxd3 {[%clk 0:02:31.7]} 12. Rxd3 {[%clk 0:02:06]}
12... Qe8 {[%clk 0:02:32.1]} 13. e3 {[%clk 0:01:23]} 13... Qf7 {[%clk
0:02:24.8]} 14. Nd2 {[%clk 0:00:56.3]} 14... Bxa2 {[%clk 0:02:04.7]} 15. Rxa2
{[%clk 0:00:16.6]} 15... Qxa2 {[%clk 0:02:04.5]} 16. Rb3 {[%clk 0:00:18.5]}
16... Rad8 {[%clk 0:01:57.8]} 17. Nf1 {[%clk 0:00:19.3]} 17... b6 {[%clk
0:01:36]} 18. h4 {[%clk 0:00:19.5]} 18... Na5 {[%clk 0:01:34]} 19. Rb5 {[%clk
0:00:17]} 19... c6 {[%clk 0:01:30.7]} 20. Rb4 {[%clk 0:00:17.7]} 20... c5 {[%clk
0:01:26.9]} 21. Rb5 {[%clk 0:00:14.5]} 21... Qc4 {[%clk 0:01:21.5]} 22. Rxa5
{[%clk 0:00:15.7]} 22... Qxa4 {[%clk 0:01:20.7]} 23. Rxa4 {[%clk 0:00:17.6]}
23... a5 {[%clk 0:01:18.9]} 24. h5 {[%clk 0:00:18.4]} 24... Kf7 {[%clk
0:00:55.8]} 25. Rc4 {[%clk 0:00:18.1]} 25... Ke6 {[%clk 0:00:55.8]} 26. Rc2
{[%clk 0:00:17.7]} 26... f5 {[%clk 0:00:56.2]} 27. Bc3 {[%clk 0:00:18.9]} 27...
e4 {[%clk 0:00:56.7]} 28. Rb2 {[%clk 0:00:19.8]} 28... Nd5 {[%clk 0:00:57.5]}
29. Be1 {[%clk 0:00:20.7]} 29... c4 {[%clk 0:00:55.7]} 30. Rc2 {[%clk 0:00:20]}
30... b5 {[%clk 0:00:56.4]} 31. Bxa5 {[%clk 0:00:21.1]} 31... Ra8 {[%clk
0:00:56.8]} 32. Bb4 {[%clk 0:00:22.4]} 32... Nxb4 {[%clk 0:00:57.6]} 33. axb4
{[%clk 0:00:24.3]} 33... Ra4 {[%clk 0:00:58.2]} 34. Rb2 {[%clk 0:00:25.4]} 34...
c3 {[%clk 0:00:56.6]} 35. Rc2 {[%clk 0:00:26.7]} 35... Rc8 {[%clk 0:00:57.3]}
36. g4 {[%clk 0:00:27]} 36... g6 {[%clk 0:00:57.7]} 37. hxg6 {[%clk 0:00:28]}
37... hxg6 {[%clk 0:00:59.6]} 38. gxf5+ {[%clk 0:00:29.9]} 38... gxf5 {[%clk
0:01:01.4]} 39. Ng3 {[%clk 0:00:31.5]} 39... Rc4 {[%clk 0:00:39.2]} 40. Bh3
{[%clk 0:00:31.9]} 40... Raxb4 {[%clk 0:00:36.2]} 41. Bxf5+ {[%clk 0:00:32.9]}
41... Ke5 {[%clk 0:00:37.3]} 42. Bxe4 {[%clk 0:00:29.6]} 42... Rb2 {[%clk
0:00:32.9]} 43. Rc1 {[%clk 0:00:30.6]} 43... b4 {[%clk 0:00:31]} 44. Bd3 {[%clk
0:00:28.7]} 44... Rc8 {[%clk 0:00:23.1]} 45. Kg2 {[%clk 0:00:28.5]} 45... b3
{[%clk 0:00:22.9]} 46. Ne2 {[%clk 0:00:24.3]} 46... c2 {[%clk 0:00:22.9]} 47.
Ra1 {[%clk 0:00:24.8]} 47... Ra2 {[%clk 0:00:22.2]} 48. Rh1 {[%clk 0:00:24.9]}
48... b2 {[%clk 0:00:21.6]} 49. Rh5+ {[%clk 0:00:25.4]} 49... Kf6 {[%clk
0:00:22.1]} 50. Rf5+ {[%clk 0:00:18.5]} 50... Ke7 {[%clk 0:00:20.7]} 51. Bxc2
{[%clk 0:00:03.8]} 51... Rxc2 {[%clk 0:00:22.6]} 52. Nd4 {[%clk 0:00:05.4]}
52... b1=Q {[%clk 0:00:22.7]} 53. Re5+ {[%clk 0:00:07.3]} 53... Kd8 {[%clk
0:00:22.3]} 54. Ne6+ {[%clk 0:00:07.1]} 54... Kd7 {[%clk 0:00:22.3]} 55. Nd4
{[%clk 0:00:09]} 55... Rxf2+ {[%clk 0:00:22.5]} 0-1

[Event "*** Titled Tuesday Blitz"]
[Site "Chess.com"]
[Date "2018.05.01"]
[Round "8"]
[White "Arystanner23"]
[Black "StoreySniper"]
[Result "0-1"]
[WhiteElo "2381"]
[BlackElo "2365"]
[TimeControl "180+2"]
[EndTime "14:51:24 PDT"]
[Termination "StoreySniper won by resignation"]

1. b3 {[%clk 0:03:01.9]} 1... g6 {[%clk 0:03:00.1]} 2. Bb2 {[%clk 0:03:03.4]}
2... Nf6 {[%clk 0:03:01.8]} 3. Bxf6 {[%clk 0:03:04.5]} 3... exf6 {[%clk
0:03:03.7]} 4. d4 {[%clk 0:03:03.8]} 4... d5 {[%clk 0:03:04.3]} 5. g3 {[%clk
0:03:05.2]} 5... h5 {[%clk 0:03:04.9]} 6. h4 {[%clk 0:03:05]} 6... f5 {[%clk
0:03:00.2]} 7. Bg2 {[%clk 0:03:05.8]} 7... Be6 {[%clk 0:02:58.6]} 8. e3 {[%clk
0:03:06.9]} 8... Nd7 {[%clk 0:02:59.3]} 9. Ne2 {[%clk 0:03:08.2]} 9... Nf6
{[%clk 0:03:00.1]} 10. Nd2 {[%clk 0:03:05.7]} 10... Bh6 {[%clk 0:02:59.6]} 11.
c4 {[%clk 0:03:04.1]} 11... Ng4 {[%clk 0:02:55.1]} 12. Qc2 {[%clk 0:02:54.6]}
12... Bxe3 {[%clk 0:02:52.6]} 13. fxe3 {[%clk 0:02:46.4]} 13... Nxe3 {[%clk
0:02:52.7]} 14. Qd3 {[%clk 0:02:46.5]} 14... Nxg2+ {[%clk 0:02:50.6]} 15. Kf2
{[%clk 0:02:47.7]} 15... dxc4 {[%clk 0:02:49.3]} 16. bxc4 {[%clk 0:02:48.9]}
16... b5 {[%clk 0:02:38.1]} 17. Kxg2 {[%clk 0:02:41.6]} 17... bxc4 {[%clk
0:02:38.7]} 18. Qe3 {[%clk 0:02:39.6]} 18... O-O {[%clk 0:02:35.1]} 19. Nf4
{[%clk 0:02:40.4]} 19... Bd5+ {[%clk 0:02:29.9]} 20. Nxd5 {[%clk 0:02:38.1]}
20... Qxd5+ {[%clk 0:02:31.8]} 21. Nf3 {[%clk 0:02:20.6]} 21... Rae8 {[%clk
0:02:31.7]} 22. Qf2 {[%clk 0:02:21.1]} 22... f4 {[%clk 0:02:26.4]} 23. gxf4
{[%clk 0:02:21.3]} 23... Re4 {[%clk 0:02:26.5]} 24. Kg3 {[%clk 0:02:14.2]} 24...
Qf5 {[%clk 0:02:13.4]} 25. Nh2 {[%clk 0:01:58.8]} 25... c5 {[%clk 0:01:32]} 26.
dxc5 {[%clk 0:01:56.4]} 26... Rd8 {[%clk 0:01:32.8]} 27. Rad1 {[%clk 0:01:57.2]}
27... Rd3+ {[%clk 0:01:27]} 28. Rxd3 {[%clk 0:01:57.3]} 28... cxd3 {[%clk
0:01:28.2]} 29. Rd1 {[%clk 0:01:52.8]} 29... Re2 {[%clk 0:01:21.4]} 30. Qd4
{[%clk 0:01:39.6]} 30... Re4 {[%clk 0:00:59.6]} 31. Qd6 {[%clk 0:01:26.7]} 31...
Re3+ {[%clk 0:00:55.5]} 32. Kf2 {[%clk 0:01:26.1]} 32... Re2+ {[%clk 0:00:51.9]}
33. Kg3 {[%clk 0:01:14.5]} 33... Re3+ {[%clk 0:00:46.6]} 34. Kf2 {[%clk
0:01:14.5]} 34... Re2+ {[%clk 0:00:47.6]} 35. Kg1 {[%clk 0:01:11.3]} 35... Qe4
{[%clk 0:00:29.8]} 36. Qd8+ {[%clk 0:01:11.6]} 36... Kh7 {[%clk 0:00:28.8]} 37.
Qg5 {[%clk 0:01:12.4]} 37... Qe3+ {[%clk 0:00:22.4]} 38. Kh1 {[%clk 0:01:12.1]}
38... d2 {[%clk 0:00:23.3]} 39. Qd5 {[%clk 0:01:06.6]} 39... Re1+ {[%clk
0:00:23.4]} 40. Kg2 {[%clk 0:01:07.6]} 40... Qe2+ {[%clk 0:00:22.1]} 41. Kh3
{[%clk 0:01:06.1]} 41... Qe3+ {[%clk 0:00:18.4]} 42. Nf3 {[%clk 0:01:01.8]}
42... Rxd1 {[%clk 0:00:12.7]} 43. Qxf7+ {[%clk 0:01:02.5]} 43... Kh8 {[%clk
0:00:13.7]} 44. Qf8+ {[%clk 0:00:56.9]} 44... Kh7 {[%clk 0:00:14.9]} 45. Qf7+
{[%clk 0:00:38.4]} 45... Kh8 {[%clk 0:00:15.4]} 46. Qf6+ {[%clk 0:00:39.6]}
46... Kg8 {[%clk 0:00:13.9]} 47. Qxg6+ {[%clk 0:00:38.7]} 47... Kf8 {[%clk
0:00:15.1]} 48. Qd6+ {[%clk 0:00:34.7]} 48... Ke8 {[%clk 0:00:15.4]} 49. Qb8+
{[%clk 0:00:35.1]} 49... Kf7 {[%clk 0:00:14.2]} 50. Qb7+ {[%clk 0:00:29.2]}
50... Kf6 {[%clk 0:00:13.1]} 51. Qb2+ {[%clk 0:00:24.8]} 51... Kf5 {[%clk
0:00:07.2]} 52. Qc2+ {[%clk 0:00:25.1]} 52... Kxf4 {[%clk 0:00:08.3]} 53. Qc4+
{[%clk 0:00:19.2]} 53... Kxf3 {[%clk 0:00:08.6]} 54. Qf7+ {[%clk 0:00:18.8]}
54... Ke2+ {[%clk 0:00:09.3]} 55. Kh2 {[%clk 0:00:18.7]} 55... Qg1+ {[%clk
0:00:09.2]} 56. Kh3 {[%clk 0:00:20.1]} 56... Qf1+ {[%clk 0:00:09.9]} 57. Kg3
{[%clk 0:00:20.9]} 57... Qxf7 {[%clk 0:00:09.6]} 0-1

[Event "*** Titled Tuesday Blitz"]
[Site "Chess.com"]
[Date "2018.05.01"]
[Round "8"]
[White "nau64"]
[Black "el-reptiliano"]
[Result "1-0"]
[WhiteElo "2154"]
[BlackElo "1715"]
[TimeControl "180+2"]
[EndTime "14:51:54 PDT"]
[Termination "nau64 won on time"]

1. d4 {[%clk 0:03:01.8]} 1... d5 {[%clk 0:02:54]} 2. c4 {[%clk 0:03:02.3]} 2...
dxc4 {[%clk 0:02:55.8]} 3. e4 {[%clk 0:03:02.4]} 3... e5 {[%clk 0:02:54.6]} 4.
Nf3 {[%clk 0:03:03]} 4... exd4 {[%clk 0:02:54]} 5. Bxc4 {[%clk 0:03:03.8]} 5...
Nc6 {[%clk 0:02:48.2]} 6. O-O {[%clk 0:03:03.4]} 6... Be6 {[%clk 0:02:48.8]} 7.
Bxe6 {[%clk 0:03:00.7]} 7... fxe6 {[%clk 0:02:50.7]} 8. Qb3 {[%clk 0:03:01.3]}
8... Qd7 {[%clk 0:02:50.3]} 9. Qxb7 {[%clk 0:02:53.5]} 9... Rb8 {[%clk
0:02:49.7]} 10. Qa6 {[%clk 0:02:53.8]} 10... Bd6 {[%clk 0:02:44.7]} 11. e5
{[%clk 0:02:43.2]} 11... Nxe5 {[%clk 0:02:36.7]} 12. Nxe5 {[%clk 0:02:43.8]}
12... Bxe5 {[%clk 0:02:38.6]} 13. Re1 {[%clk 0:02:42.7]} 13... Bd6 {[%clk
0:02:39.2]} 14. Qxa7 {[%clk 0:02:40.3]} 14... c5 {[%clk 0:02:35.4]} 15. Qa6
{[%clk 0:02:22.9]} 15... Nf6 {[%clk 0:02:31.7]} 16. Qc4 {[%clk 0:02:20.7]} 16...
Nd5 {[%clk 0:02:01.5]} 17. g3 {[%clk 0:02:10.3]} 17... O-O {[%clk 0:01:54.3]}
18. Nd2 {[%clk 0:02:09.9]} 18... Rb4 {[%clk 0:01:22]} 19. Qe2 {[%clk 0:02:09.3]}
19... e5 {[%clk 0:00:24.6]} 20. Nc4 {[%clk 0:01:58.6]} 20... e4 {[%clk 0:00:16]}
21. Qxe4 {[%clk 0:01:54.6]} 21... Qf7 {[%clk 0:00:15.3]} 22. Nxd6 {[%clk
0:01:45.4]} 22... Qxf2+ {[%clk 0:00:15.4]} 23. Kh1 {[%clk 0:01:46.3]} 23... Ne3
{[%clk 0:00:14.4]} 24. Bxe3 {[%clk 0:01:45.9]} 24... dxe3 {[%clk 0:00:15.5]} 25.
Qxe3 {[%clk 0:01:45.5]} 25... Rxb2 {[%clk 0:00:16.2]} 26. Qxf2 {[%clk
0:01:32.7]} 26... Rbxf2 {[%clk 0:00:18.1]} 27. Kg1 {[%clk 0:01:28.9]} 27... Rd2
{[%clk 0:00:17.7]} 28. Ne4 {[%clk 0:01:26.6]} 28... Rc2 {[%clk 0:00:18.9]} 29.
a4 {[%clk 0:01:26.3]} 29... c4 {[%clk 0:00:19.2]} 30. a5 {[%clk 0:01:27]} 30...
Rb8 {[%clk 0:00:20.2]} 31. a6 {[%clk 0:01:22.9]} 31... Rcb2 {[%clk 0:00:17.2]}
32. a7 {[%clk 0:01:23.1]} 32... Ra8 {[%clk 0:00:18.4]} 33. Reb1 {[%clk
0:01:22.7]} 33... Rxb1+ {[%clk 0:00:18.8]} 34. Rxb1 {[%clk 0:01:24.4]} 34...
Rxa7 {[%clk 0:00:20]} 35. Rc1 {[%clk 0:01:25]} 35... Rc7 {[%clk 0:00:20.8]} 36.
Kf2 {[%clk 0:01:24]} 36... Kf7 {[%clk 0:00:20.8]} 37. Ke3 {[%clk 0:01:25]} 37...
Ke6 {[%clk 0:00:21.6]} 38. Kd4 {[%clk 0:01:25.7]} 38... Rd7+ {[%clk 0:00:23.1]}
39. Ke3 {[%clk 0:01:23.9]} 39... Rc7 {[%clk 0:00:22.4]} 40. Rc2 {[%clk
0:01:19.9]} 40... Ke5 {[%clk 0:00:21.7]} 41. Nd2 {[%clk 0:01:20.1]} 41... Kd5
{[%clk 0:00:21.7]} 42. Ne4 {[%clk 0:01:09.2]} 42... Ke5 {[%clk 0:00:21.2]} 43.
Rc3 {[%clk 0:01:06.8]} 43... Rc8 {[%clk 0:00:17.7]} 44. Nd2 {[%clk 0:01:01.9]}
44... Kd5 {[%clk 0:00:18]} 45. Nf3 {[%clk 0:01:02.5]} 45... Re8+ {[%clk
0:00:18.5]} 46. Kf4 {[%clk 0:01:03.4]} 46... Rf8+ {[%clk 0:00:19.3]} 47. Ke3
{[%clk 0:00:56.5]} 47... Re8+ {[%clk 0:00:19.5]} 48. Kd2 {[%clk 0:00:57.5]}
48... Rb8 {[%clk 0:00:20.2]} 49. Kc2 {[%clk 0:00:52.2]} 49... Re8 {[%clk
0:00:20.9]} 50. Kd2 {[%clk 0:00:50.4]} 50... Rb8 {[%clk 0:00:21.5]} 51. Rc2
{[%clk 0:00:50.1]} 51... Rb3 {[%clk 0:00:21.9]} 52. Ng5 {[%clk 0:00:48.1]} 52...
Rd3+ {[%clk 0:00:21.9]} 53. Ke2 {[%clk 0:00:47.6]} 53... h6 {[%clk 0:00:19.8]}
54. Nf3 {[%clk 0:00:46.7]} 54... Ra3 {[%clk 0:00:13.5]} 55. Rd2+ {[%clk
0:00:42.4]} 55... Kc6 {[%clk 0:00:13.9]} 56. Rd4 {[%clk 0:00:42.4]} 56... Kc5
{[%clk 0:00:14.5]} 57. Rd7 {[%clk 0:00:42.2]} 57... Ra2+ {[%clk 0:00:15.6]} 58.
Ke3 {[%clk 0:00:43.3]} 58... Ra3+ {[%clk 0:00:15.6]} 59. Ke4 {[%clk 0:00:44.1]}
59... g5 {[%clk 0:00:16.6]} 60. g4 {[%clk 0:00:43.6]} 60... Kb4 {[%clk
0:00:15.2]} 61. Rc7 {[%clk 0:00:42.3]} 61... c3 {[%clk 0:00:13.3]} 62. Nd4
{[%clk 0:00:40.7]} 62... Ra8 {[%clk 0:00:10.8]} 63. Kf5 {[%clk 0:00:37.9]} 63...
Rd8 {[%clk 0:00:10.2]} 64. Nc6+ {[%clk 0:00:35.5]} 64... Kb3 {[%clk 0:00:11.3]}
65. Nxd8 {[%clk 0:00:36.3]} 65... c2 {[%clk 0:00:13.2]} 66. Kg6 {[%clk
0:00:37.1]} 66... c1=Q {[%clk 0:00:14.9]} 67. Rxc1 {[%clk 0:00:37.5]} 67... Kb2
{[%clk 0:00:07.7]} 68. Rc6 {[%clk 0:00:37.9]} 1-0

[Event "*** Titled Tuesday Blitz"]
[Site "Chess.com"]
[Date "2018.05.01"]
[Round "8"]
[White "SCIM"]
[Black "GulamaliRises"]
[Result "0-1"]
[WhiteElo "2394"]
[BlackElo "2496"]
[TimeControl "180+2"]
[EndTime "14:52:13 PDT"]
[Termination "GulamaliRises won by resignation"]

1. d4 {[%clk 0:02:59.1]} 1... Nf6 {[%clk 0:03:00.7]} 2. c4 {[%clk 0:03:00.4]}
2... c6 {[%clk 0:03:01.9]} 3. Nf3 {[%clk 0:02:59.2]} 3... d5 {[%clk 0:03:03.1]}
4. e3 {[%clk 0:03:00.2]} 4... e6 {[%clk 0:03:03.9]} 5. b3 {[%clk 0:02:59.2]}
5... Nbd7 {[%clk 0:03:04.9]} 6. Bd3 {[%clk 0:02:56.5]} 6... Bd6 {[%clk
0:02:58.9]} 7. Bb2 {[%clk 0:02:55.2]} 7... O-O {[%clk 0:02:58.2]} 8. O-O {[%clk
0:02:55.9]} 8... b6 {[%clk 0:02:57]} 9. Nbd2 {[%clk 0:02:55.2]} 9... Bb7 {[%clk
0:02:57.9]} 10. Ne5 {[%clk 0:02:55.9]} 10... c5 {[%clk 0:02:58.2]} 11. cxd5
{[%clk 0:02:49.4]} 11... Bxd5 {[%clk 0:02:55.4]} 12. Qe2 {[%clk 0:02:29.3]}
12... cxd4 {[%clk 0:02:54.6]} 13. exd4 {[%clk 0:02:28.6]} 13... Rc8 {[%clk
0:02:47]} 14. Ndc4 {[%clk 0:02:25.4]} 14... Bb8 {[%clk 0:02:46.3]} 15. Rac1
{[%clk 0:02:23.2]} 15... b5 {[%clk 0:02:40.1]} 16. Ne3 {[%clk 0:02:21.9]} 16...
a6 {[%clk 0:02:39.5]} 17. Nxd5 {[%clk 0:02:14.7]} 17... Nxd5 {[%clk 0:02:40.2]}
18. Ba3 {[%clk 0:02:10.5]} 18... Nxe5 {[%clk 0:02:33.5]} 19. Rxc8 {[%clk
0:01:33.7]} 19... Qxc8 {[%clk 0:02:31.8]} 20. dxe5 {[%clk 0:01:24.9]} 20... Rd8
{[%clk 0:02:11.2]} 21. Rc1 {[%clk 0:01:12.4]} 21... Qd7 {[%clk 0:02:03.5]} 22.
Be4 {[%clk 0:01:01.5]} 22... Nf4 {[%clk 0:01:57]} 23. Qc2 {[%clk 0:00:54.1]}
23... Bxe5 {[%clk 0:01:51.6]} 24. Bxh7+ {[%clk 0:00:53.3]} 24... Kh8 {[%clk
0:01:52]} 25. Be4 {[%clk 0:00:51.2]} 25... f5 {[%clk 0:01:49.7]} 26. Bf3 {[%clk
0:00:47.7]} 26... Qd2 {[%clk 0:01:34.1]} 27. Be7 {[%clk 0:00:21.2]} 27... Rd7
{[%clk 0:01:29.2]} 28. Bg5 {[%clk 0:00:21.7]} 28... Nh3+ {[%clk 0:01:28.9]} 29.
gxh3 {[%clk 0:00:18.4]} 29... Qxg5+ {[%clk 0:01:30.8]} 30. Kf1 {[%clk
0:00:18.9]} 30... Rc7 {[%clk 0:01:09.2]} 31. Qxc7 {[%clk 0:00:15.5]} 31... Bxc7
{[%clk 0:01:11.1]} 32. Rxc7 {[%clk 0:00:16.3]} 32... Qf4 {[%clk 0:01:11.5]} 33.
Rc8+ {[%clk 0:00:16.9]} 33... Kh7 {[%clk 0:01:12.8]} 34. Kg2 {[%clk 0:00:18.1]}
34... e5 {[%clk 0:01:13.7]} 35. Rc2 {[%clk 0:00:14.8]} 35... e4 {[%clk
0:01:14.6]} 36. Be2 {[%clk 0:00:15.9]} 36... Qg5+ {[%clk 0:01:07.4]} 37. Kf1
{[%clk 0:00:16.2]} 37... Qh4 {[%clk 0:01:08.5]} 38. Rc3 {[%clk 0:00:16.3]} 38...
f4 {[%clk 0:01:09.6]} 39. Bg4 {[%clk 0:00:17.1]} 39... Qd8 {[%clk 0:01:07.9]}
40. Bf5+ {[%clk 0:00:15.8]} 40... Kh6 {[%clk 0:01:01.4]} 41. Rc6+ {[%clk
0:00:14.2]} 41... Kg5 {[%clk 0:01:01.8]} 42. Bxe4 {[%clk 0:00:15.3]} 42... f3
{[%clk 0:00:46.9]} 43. Bxf3 {[%clk 0:00:16.2]} 43... Kf4 {[%clk 0:00:47.3]} 44.
Be2 {[%clk 0:00:15.8]} 44... Qd2 {[%clk 0:00:45.4]} 45. Rc5 {[%clk 0:00:12.1]}
45... Qxa2 {[%clk 0:00:44.7]} 46. Rh5 {[%clk 0:00:10.1]} 46... Qxb3 {[%clk
0:00:34.9]} 47. Rh4+ {[%clk 0:00:11.6]} 47... Kf5 {[%clk 0:00:35.9]} 48. Rg4
{[%clk 0:00:12.9]} 48... g6 {[%clk 0:00:30.4]} 49. Rg3 {[%clk 0:00:13.4]} 49...
Qb1+ {[%clk 0:00:18.8]} 50. Kg2 {[%clk 0:00:14.4]} 50... Qe4+ {[%clk 0:00:20.7]}
51. Bf3 {[%clk 0:00:12.2]} 51... Qe7 {[%clk 0:00:21.7]} 52. Bg4+ {[%clk
0:00:12.1]} 52... Kf6 {[%clk 0:00:22.1]} 53. Bd1 {[%clk 0:00:13.7]} 53... a5
{[%clk 0:00:21.7]} 54. Bc2 {[%clk 0:00:13.6]} 54... Qb7+ {[%clk 0:00:22.2]} 55.
Kg1 {[%clk 0:00:13.3]} 55... g5 {[%clk 0:00:23.6]} 56. h4 {[%clk 0:00:12.7]}
56... gxh4 {[%clk 0:00:24.3]} 57. Rg6+ {[%clk 0:00:13.8]} 57... Ke5 {[%clk
0:00:25.3]} 58. Rg5+ {[%clk 0:00:14.7]} 58... Kf4 {[%clk 0:00:25.9]} 59. Rf5+
{[%clk 0:00:15]} 59... Kg4 {[%clk 0:00:27.2]} 60. Bd3 {[%clk 0:00:13.6]} 60...
h3 {[%clk 0:00:17.9]} 61. f3+ {[%clk 0:00:13.7]} 61... Kh4 {[%clk 0:00:19.1]}
62. Be4 {[%clk 0:00:13.2]} 62... Qg7+ {[%clk 0:00:19]} 63. Kf1 {[%clk
0:00:13.6]} 63... Qg2+ {[%clk 0:00:20.9]} 64. Ke1 {[%clk 0:00:14.1]} 64... Qxh2
{[%clk 0:00:22.3]} 65. Rxb5 {[%clk 0:00:13.5]} 65... Qg1+ {[%clk 0:00:23.4]} 66.
Ke2 {[%clk 0:00:14]} 66... Qg2+ {[%clk 0:00:24.7]} 67. Ke3 {[%clk 0:00:14.6]}
67... h2 {[%clk 0:00:25.9]} 68. f4 {[%clk 0:00:13.7]} 68... Qg1+ {[%clk
0:00:22.1]} 69. Kd2 {[%clk 0:00:10.6]} 69... Qd4+ {[%clk 0:00:22.4]} 70. Bd3
{[%clk 0:00:10.2]} 70... Qxf4+ {[%clk 0:00:23]} 0-1

[Event "*** Titled Tuesday Blitz"]
[Site "Chess.com"]
[Date "2018.05.01"]
[Round "9"]
[White "MatthewG-p4p"]
[Black "savinspm"]
[Result "0-1"]
[WhiteElo "2557"]
[BlackElo "2016"]
[TimeControl "180+2"]
[EndTime "14:55:28 PDT"]
[Termination "savinspm won by resignation"]

1. e4 {[%clk 0:02:57.4]} 1... e5 {[%clk 0:03:00.4]} 2. Nf3 {[%clk 0:02:58.2]}
2... Nc6 {[%clk 0:03:01.6]} 3. Nc3 {[%clk 0:02:59.7]} 3... Nf6 {[%clk 0:02:58]}
4. Nxe5 {[%clk 0:03:00.9]} 4... Nxe5 {[%clk 0:02:57.3]} 5. d4 {[%clk 0:03:02.4]}
5... Nc6 {[%clk 0:02:53.3]} 6. d5 {[%clk 0:03:03.2]} 6... Qe7 {[%clk 0:02:49]}
7. dxc6 {[%clk 0:02:42.3]} 7... Nxe4 {[%clk 0:02:47.4]} 8. Nxe4 {[%clk
0:02:30.1]} 8... Qxe4+ {[%clk 0:02:47.6]} 9. Be2 {[%clk 0:02:31.6]} 9... dxc6
{[%clk 0:02:44.4]} 10. O-O {[%clk 0:02:31]} 10... Be6 {[%clk 0:02:44.6]} 11. Bf3
{[%clk 0:02:29.3]} 11... Qg6 {[%clk 0:02:27.7]} 12. Bh5 {[%clk 0:02:15.5]} 12...
Qf6 {[%clk 0:02:25.2]} 13. c4 {[%clk 0:02:07.6]} 13... Bd6 {[%clk 0:02:23.6]}
14. Qc2 {[%clk 0:02:03.6]} 14... Qh4 {[%clk 0:02:13.2]} 0-1